bitfinex/quotes_BTCUSD_20251219
["timestamp","ask_amount","ask_price","bid_price","bid_amount"]
[1766132755059,0.24219518,87988.0,87980.0,0.00572]
[1766132755595,0.01136544,87986.0,87980.0,0.00572]
[1766132755724,0.01136531,87987.0,87980.0,0.00572]
[1766132756137,0.01136531,87987.0,87978.0,0.00010929]
[1766132756451,0.23655,87994.0,87979.0,0.00572]
[1766132756640,0.00572,87994.0,87979.0,0.00572]
[1766132757062,0.23083,87992.0,87979.0,0.00572]
[1766132757305,0.23083,87992.0,87979.0,0.05886]
[1766132757512,0.23083,87992.0,87979.0,0.17571]
[1766132759065,0.23083,87992.0,87979.0,0.18707634]
[1766132759343,0.23083,87992.0,87979.0,0.17571]
[1766132759583,0.23083,87992.0,87979.0,0.18707634]
[1766132759723,0.23083,87992.0,87979.0,0.17571]
[1766132759922,0.01136474,88004.0,87984.0,0.0113657]
[1766132760121,1.63e-06,88004.0,87990.0,0.05314]
[1766132760323,1.63e-06,88004.0,87992.0,0.16999]
[1766132761222,0.01066527,88004.0,87992.0,0.16999]
[1766132761430,1.63e-06,88004.0,87992.0,0.16999]
[1766132761649,1.63e-06,88004.0,87992.0,0.05314]
[1766132761976,0.11779163,88004.0,87992.0,0.05314]
[1766132762948,1.63e-06,88004.0,87997.0,0.01136402]
[1766132763151,1.63e-06,88004.0,88000.0,0.16999]
[1766132763357,0.02456691,88018.0,88009.0,0.11685]
[1766132763559,0.04552,88023.0,88010.0,0.07249481]
[1766132763560,0.00572,88023.0,88010.0,0.07249481]
[1766132764599,0.00608479,88023.0,88010.0,0.07249481]
[1766132766013,0.00608479,88023.0,88010.0,0.05886]
[1766132766188,0.01744545,88023.0,88010.0,0.05886]
[1766132766414,0.12900479,88023.0,88010.0,0.05886]
[1766132766618,0.14036545,88023.0,88010.0,0.05886]
[1766132766813,0.01136182,88014.0,88010.0,0.004621]
[1766132766995,0.25811169,88015.0,88010.0,1e-06]
[1766132767198,0.12292,88014.0,88010.0,1e-06]
[1766132767603,0.01136195,88013.0,87990.0,0.01136492]
[1766132767809,0.01136221,88011.0,87995.0,0.11254]
[1766132768099,0.99891427,88010.0,87996.0,0.11254]
[1766132768310,0.99891427,88010.0,87998.0,0.05776]
[1766132768507,0.99891427,88010.0,87999.0,0.11254]
[1766132768734,0.24675,88014.0,87999.0,0.11254]
[1766132768904,0.12292,88013.0,87999.0,0.11254]
[1766132769109,0.12292,88013.0,87999.0,0.1703]
[1766132769343,0.12292,88013.0,87999.0,0.18166376]
[1766132769544,0.12292,88013.0,87999.0,0.1703]
[1766132770802,0.12383,88014.0,87999.0,0.05776]
[1766132771011,0.24675,88014.0,87999.0,0.05776]
[1766132771580,0.24675,88014.0,88000.0,0.1703]
[1766132771991,0.13519182,88014.0,88000.0,0.1703]
[1766132772190,0.13428273,88007.0,87993.0,0.04552]
[1766132772354,0.13428273,88007.0,87994.0,0.00572]
[1766132772551,0.01136286,88006.0,87993.0,0.05776]
[1766132772758,0.24675,88003.0,87994.0,0.00572]
[1766132774076,0.12292,88009.0,87994.0,0.00572]
[1766132774282,0.01136144,88017.0,87994.0,0.00572]
[1766132774283,0.12383,88020.0,88003.0,0.05776]
[1766132774535,0.00572,88019.0,88005.0,0.18166299]
[1766132774760,0.00572,88019.0,88006.0,0.02499829]
[1766132774963,0.00572,88019.0,88006.0,0.07139543]
[1766132775450,0.00572,88019.0,88006.0,0.05776]
[1766132775815,0.01708118,88019.0,88006.0,0.05776]
[1766132776014,0.01136144,88017.0,88006.0,0.05776]
[1766132776413,0.01136144,88017.0,88004.0,0.00572]
[1766132776414,0.01136131,88018.0,88004.0,0.00572]
[1766132776619,0.24675,88011.0,88004.0,0.00572]
[1766132776932,0.12292,88010.0,88004.0,0.00572]
[1766132777155,0.12292,88010.0,87992.0,0.12390466]
[1766132777359,0.12292,88010.0,87993.0,0.00572]
[1766132777360,0.24675,88007.0,87993.0,0.00572]
[1766132777946,0.24675,88007.0,87993.0,0.01708454]
[1766132778148,0.99891427,88010.0,87996.0,0.05776]
[1766132778555,0.99891427,88010.0,87996.0,0.1703]
[1766132780277,0.99891427,88010.0,87996.0,0.18166415]
[1766132780638,0.99891427,88010.0,87997.0,0.00572]
[1766132781129,0.24675,88009.0,87997.0,0.00572]
[1766132781443,0.24675,88009.0,87997.0,0.01708402]
[1766132781648,0.24675,88009.0,87997.0,0.00572]
[1766132784106,0.99891427,88010.0,87997.0,0.00572]
[1766132784525,0.99891427,88010.0,87997.0,0.06348]
[1766132784962,0.99891427,88010.0,87997.0,0.07484402]
[1766132785159,0.99891427,88010.0,87997.0,0.06348]
[1766132785388,0.99891427,88010.0,87997.0,0.17602]
[1766132786867,0.99891427,88010.0,87998.0,0.01136389]
[1766132787070,0.99891427,88010.0,88000.0,0.01136363]
[1766132787269,0.99891427,88010.0,88001.0,0.1239035]
[1766132787463,0.12383,88018.0,88005.0,0.11254]
[1766132787672,0.00572,88014.0,88005.0,0.12390299]
[1766132788091,0.00572,88014.0,88002.0,0.11826]
[1766132788297,0.99891427,88012.0,88002.0,0.11826]
[1766132789747,0.99891427,88012.0,88002.0,0.00572]
[1766132790322,0.12383,88010.0,88002.0,0.00572]
[1766132790911,0.12383,88007.0,88002.0,0.004621]
[1766132791113,0.12292,88006.0,87991.0,0.11254]
[1766132791319,0.12383,88005.0,87992.0,0.00572]
[1766132791475,0.99891427,88001.0,87993.0,0.11254]
[1766132791797,0.99891427,88001.0,87992.0,0.00572]
[1766132792008,1.24566427,88001.0,87992.0,0.00572]
[1766132793175,0.24675,88000.0,87992.0,0.00572]
[1766132793814,0.12383,88000.0,87992.0,0.00572]
[1766132795580,0.11794,87999.0,87992.0,0.00572]
[1766132795778,0.11794,87999.0,87987.0,0.04552]
[1766132795779,0.2359,87996.0,87987.0,0.04552]
[1766132795967,0.2359,87996.0,87988.0,0.00572]
[1766132798515,0.11796,87996.0,87988.0,0.00572]
[1766132801079,0.2359,88000.0,87988.0,0.00572]
[1766132801346,0.99891427,88000.0,87988.0,0.00572]
[1766132801514,0.11796,87998.0,87988.0,0.00572]
[1766132801835,0.2359,87998.0,87988.0,0.00572]
[1766132804400,0.11796,87996.0,87988.0,0.00572]
[1766132804598,0.11794,87995.0,87988.0,0.00572]
[1766132806004,0.11796,87996.0,87988.0,0.00572]
[1766132806799,0.2359,87996.0,87988.0,0.00572]
[1766132807610,0.00572,88001.0,87988.0,0.00572]
[1766132807811,0.2359,88000.0,87990.0,0.99891427]
[1766132808214,0.00572,88001.0,87990.0,0.99891427]
[1766132808602,0.2359,88000.0,87990.0,0.99891427]
[1766132809014,0.11796,88000.0,87990.0,0.99891427]
[1766132809208,0.00572,88001.0,87990.0,0.99891427]
[1766132809649,0.11796,88000.0,87990.0,0.99891427]
[1766132809873,0.11796,87999.0,87990.0,0.99891427]
[1766132810064,0.2359,87997.0,87990.0,0.99891427]
[1766132811202,0.2359,87997.0,87988.0,0.00572]
[1766132811699,0.11796,87996.0,87988.0,0.00572]
[1766132813024,0.11794,87995.0,87988.0,0.00572]
[1766132813227,0.2359,87994.0,87988.0,0.00572]
[1766132817847,0.2359,87994.0,87984.0,0.99891427]
[1766132817848,0.2359,87997.0,87980.0,0.99891427]
[1766132818058,0.0272186,87996.0,87981.0,0.00572]
[1766132818243,0.2359,87995.0,87981.0,0.00572]
[1766132819551,0.2359,87995.0,87981.0,0.12642]
[1766132819773,0.2359,87995.0,87981.0,0.13778609]
[1766132820341,0.2359,87995.0,87981.0,0.12642]
[1766132820547,0.2359,87995.0,87981.0,0.13778609]
[1766132820743,0.2359,87995.0,87981.0,0.12642]
[1766132820985,0.11796,87995.0,87983.0,0.1207]
[1766132821149,0.11796,87995.0,87984.0,0.0113657]
[1766132821350,0.11796,87995.0,87985.0,0.01136557]
[1766132821568,0.11796,87995.0,87986.0,0.01136544]
[1766132821772,0.11796,88007.0,87995.0,0.001099]
[1766132822104,0.04552,88012.0,87995.0,0.001099]
[1766132822105,0.00572,88008.0,88000.0,0.1207]
[1766132822431,0.00036457,88008.0,88000.0,0.1207]
[1766132822763,0.00036457,88008.0,87996.0,0.00572]
[1766132823110,0.00036457,88008.0,87998.0,0.99891427]
[1766132823653,5.7e-07,88008.0,88005.0,0.2386228]
[1766132823848,5.7e-07,88008.0,88006.0,0.01363543]
[1766132824134,5.7e-07,88008.0,87997.0,0.238642]
[1766132824311,5.7e-07,88008.0,87998.0,0.99891427]
[1766132824492,5.7e-07,88008.0,87999.0,0.01136376]
[1766132825058,5.7e-07,88008.0,87998.0,0.99891427]
[1766132825350,5.7e-07,88008.0,87998.0,1.01027816]
[1766132825495,5.7e-07,88008.0,87996.0,0.01136415]
[1766132825694,0.24095057,88008.0,87998.0,0.99891427]
[1766132826705,0.24095057,88008.0,87995.0,0.11702]
[1766132826912,0.24095057,88008.0,88001.0,0.005356]
[1766132827452,0.24095057,88008.0,87988.0,0.23866671]
[1766132827453,0.24095,88002.0,87991.0,0.1478]
[1766132827675,0.24095,88002.0,87993.0,0.00572]
[1766132828010,0.01136363,88000.0,87993.0,0.00572]
[1766132828326,0.12052,87998.0,87980.0,1.01032481]
[1766132828528,0.12052,87996.0,87982.0,0.00572]
[1766132828753,0.12052,87996.0,87982.0,0.12496]
[1766132829515,0.12052,87996.0,87982.0,0.24440374]
[1766132829715,0.12052,87996.0,87986.0,0.01136544]
[1766132830127,0.12052,87996.0,87987.0,0.01136531]
[1766132830323,0.0272186,88002.0,87988.0,0.13632518]
[1766132830504,0.24095,88001.0,87989.0,0.01136505]
[1766132830720,0.0272186,88002.0,87988.0,0.13632518]
[1766132830721,0.0272186,88002.0,87988.0,0.01708518]
[1766132830926,0.0272186,88002.0,87988.0,0.00572]
[1766132831121,0.24095,88001.0,87990.0,0.01136492]
[1766132831444,0.24095,88001.0,87991.0,0.01136479]
[1766132831758,0.24095,88001.0,87988.0,0.00572]
[1766132831977,0.24095,88001.0,87986.0,0.01136544]
[1766132832314,0.24095,88001.0,87987.0,0.01136531]
[1766132832582,0.12052,88000.0,87988.0,0.00572]
[1766132832768,0.24095,88000.0,87988.0,0.00572]
[1766132832969,0.24095,88000.0,87988.0,0.01708518]
[1766132833174,0.0272186,88002.0,87988.0,0.00572]
[1766132833562,0.24095,88001.0,87988.0,0.01708518]
[1766132833739,0.24095,88001.0,87989.0,0.01136505]
[1766132833961,0.12052,88000.0,87988.0,0.01708518]
[1766132834321,0.12052,88000.0,87990.0,0.01136492]
[1766132834892,0.12052,88000.0,87993.0,0.01136454]
[1766132835087,0.12052,88000.0,87990.0,0.01136492]
[1766132835269,5.7e-07,88008.0,87995.0,0.01136428]
[1766132835454,0.00572,88007.0,88000.0,0.01246263]
[1766132835658,5.7e-07,88008.0,88001.0,0.0249997]
[1766132835878,5.7e-07,88008.0,88004.0,0.01136311]
[1766132836098,5.7e-07,88008.0,88006.0,0.11924]
[1766132838102,5.7e-07,88008.0,88007.0,0.00572]
[1766132838303,5.7e-07,88008.0,88007.0,0.01935527]
[1766132839074,5.7e-07,88008.0,88007.0,0.00572]
[1766132841643,5.7e-07,88008.0,88001.0,0.00572]
[1766132842062,5.7e-07,88008.0,87996.0,0.01136415]
[1766132842063,0.12052057,88008.0,87995.0,0.01136428]
[1766132842262,5.7e-07,88008.0,87999.0,0.00572]
[1766132842567,0.12052057,88008.0,87999.0,0.00572]
[1766132844279,0.12052057,88008.0,87998.0,0.00572]
[1766132844964,0.12052,88005.0,87998.0,0.00572]
[1766132845227,5.7e-07,88008.0,87998.0,0.00572]
[1766132845228,0.24095,88004.0,87998.0,0.00572]
[1766132847193,5.7e-07,88008.0,87998.0,0.00572]
[1766132847516,5.7e-07,88008.0,88004.0,0.001099]
[1766132847715,5.7e-07,88008.0,87998.0,0.12496]
[1766132847874,5.7e-07,88008.0,87998.0,0.00572]
[1766132848293,5.7e-07,88008.0,87999.0,0.11924]
[1766132848495,5.7e-07,88008.0,87998.0,0.00572]
[1766132850094,5.7e-07,88008.0,87998.0,0.01708389]
[1766132850304,5.7e-07,88008.0,87998.0,0.00572]
[1766132851239,5.7e-07,88008.0,87998.0,0.01708389]
[1766132851657,5.7e-07,88008.0,87998.0,0.00572]
[1766132852096,5.7e-07,88008.0,87998.0,0.01708389]
[1766132852452,5.7e-07,88008.0,87998.0,0.00572]
[1766132853472,5.7e-07,88008.0,88000.0,0.01136363]
[1766132853659,5.7e-07,88008.0,88001.0,0.0113635]
[1766132853858,5.7e-07,88008.0,87999.0,0.01136376]
[1766132854058,5.7e-07,88008.0,87998.0,0.00572]
[1766132854937,0.24095057,88008.0,87998.0,0.00572]
[1766132855351,0.24095057,88008.0,87998.0,0.13046]
[1766132855352,5.7e-07,88008.0,87998.0,0.13046]
[1766132855968,5.7e-07,88008.0,87998.0,0.14182389]
[1766132856173,5.7e-07,88008.0,87988.0,0.22730159]
[1766132856302,5.7e-07,88008.0,87997.0,0.12474]
[1766132856503,5.7e-07,88008.0,87998.0,0.01136389]
[1766132856715,5.7e-07,88008.0,87999.0,0.01136376]
[1766132856917,5.7e-07,88008.0,87998.0,0.01136389]
[1766132857107,5.7e-07,88008.0,87997.0,0.35201949]
[1766132857332,5.7e-07,88008.0,87999.0,0.01136376]
[1766132857660,5.7e-07,88008.0,88000.0,0.01136363]
[1766132857881,5.7e-07,88008.0,88002.0,0.12474]
[1766132858074,5.7e-07,88008.0,88002.0,0.01136337]
[1766132858220,5.7e-07,88008.0,88001.0,0.0113635]
[1766132858430,5.7e-07,88008.0,88003.0,0.01136324]
[1766132858659,5.7e-07,88008.0,88001.0,0.23863298]
[1766132858854,5.7e-07,88008.0,88001.0,0.0113635]
[1766132859056,5.7e-07,88008.0,88003.0,0.01136324]
[1766132859259,5.7e-07,88008.0,88002.0,0.01136337]
[1766132859625,5.7e-07,88008.0,88001.0,0.0113635]
[1766132859798,5.7e-07,88008.0,88002.0,0.01136337]
[1766132860005,5.7e-07,88008.0,88000.0,0.01136363]
[1766132860502,5.7e-07,88008.0,88001.0,0.36337156]
[1766132860704,5.7e-07,88008.0,88003.0,0.01136324]
[1766132861073,5.7e-07,88008.0,88002.0,0.12474]
[1766132861478,5.7e-07,88008.0,88003.0,0.01136324]
[1766132861689,5.7e-07,88008.0,88002.0,0.12474]
[1766132862092,5.7e-07,88008.0,88002.0,0.13610337]
[1766132862292,5.7e-07,88008.0,88005.0,0.01136299]
[1766132862518,5.7e-07,88008.0,88002.0,0.01136337]
[1766132862689,5.7e-07,88008.0,88001.0,0.0113635]
[1766132862894,5.7e-07,88008.0,88005.0,0.12474]
[1766132863123,5.7e-07,88008.0,88003.0,0.01136324]
[1766132863298,5.7e-07,88008.0,88004.0,0.12474]
[1766132863500,5.7e-07,88008.0,87998.0,0.01708389]
[1766132863751,5.7e-07,88008.0,87999.0,0.13610376]
[1766132864412,5.7e-07,88008.0,87999.0,0.12474]
[1766132865132,5.7e-07,88008.0,87999.0,0.13610376]
[1766132865327,5.7e-07,88008.0,88003.0,0.01136324]
[1766132865568,5.7e-07,88008.0,88000.0,0.22727272]
[1766132865569,5.7e-07,88008.0,88002.0,0.01136337]
[1766132865972,5.7e-07,88008.0,88000.0,0.01136363]
[1766132866370,5.7e-07,88008.0,88001.0,0.0113635]
[1766132866993,5.7e-07,88008.0,88002.0,0.01136337]
[1766132867195,5.7e-07,88008.0,88004.0,0.01136311]
[1766132867414,5.7e-07,88008.0,88002.0,0.01136337]
[1766132867700,5.7e-07,88008.0,88000.0,0.01136363]
[1766132868331,5.7e-07,88008.0,88002.0,0.01136337]
[1766132868535,5.7e-07,88008.0,88003.0,0.01136324]
[1766132868934,5.7e-07,88008.0,88006.0,0.12474]
[1766132869317,5.7e-07,88008.0,88006.0,0.22725471]
[1766132869494,5.7e-07,88008.0,88007.0,0.12474]
[1766132878825,5.7e-07,88008.0,88005.0,0.00572]
[1766132879150,5.7e-07,88008.0,88005.0,0.01708299]
[1766132879789,5.7e-07,88008.0,88005.0,0.00572]
[1766132879989,5.7e-07,88008.0,88005.0,0.01708299]
[1766132880223,5.7e-07,88008.0,88005.0,0.00572]
[1766132880429,5.7e-07,88008.0,88006.0,0.22725723]
[1766132881212,5.7e-07,88008.0,88005.0,0.24434076]
[1766132882095,5.7e-07,88008.0,88004.0,0.2386244]
[1766132882303,5.7e-07,88008.0,87994.0,0.00572]
[1766132882304,0.12015,88007.0,87994.0,0.00572]
[1766132882452,0.14148,88007.0,87994.0,0.00572]
[1766132882652,0.12015,88006.0,87994.0,0.00572]
[1766132882839,0.12015,88006.0,87994.0,0.13046]
[1766132884907,0.12015,88006.0,87985.0,0.23867545]
[1766132884908,0.0113657,87984.0,87964.0,0.1207]
[1766132885110,0.00572,87987.0,87972.0,0.103]
[1766132885418,0.00572,87987.0,87973.0,0.1174]
[1766132885419,0.11703,87986.0,87973.0,0.1174]
[1766132885974,0.00572,87987.0,87974.0,0.103]
[1766132886127,0.00404964,87990.0,87987.0,0.001099]
[1766132886330,0.00572,87995.0,87987.0,0.118499]
[1766132886845,0.00572,87995.0,87987.0,0.1174]
[1766132887206,0.12275,87995.0,87982.0,0.1174]
[1766132887417,0.12275,87995.0,87979.0,0.00572]
[1766132887418,0.01136479,87991.0,87979.0,0.00572]
[1766132887639,0.11703,87990.0,87979.0,0.00572]
[1766132889216,0.13836,87990.0,87979.0,0.00572]
[1766132889435,0.13836,87990.0,87980.0,0.99925232]
[1766132891059,0.11703,87990.0,87980.0,0.99925232]
[1766132891459,0.11703,87990.0,87980.0,0.1174]
[1766132891460,0.115931,87990.0,87980.0,0.1174]
[1766132891640,0.115931,87990.0,87980.0,1.11665232]
[1766132891838,0.115931,87990.0,87979.0,0.00572]
[1766132892061,0.115931,87990.0,87980.0,0.99925232]
[1766132893281,0.00572,87989.0,87980.0,0.99925232]
[1766132894150,0.12275,87989.0,87980.0,0.99925232]
[1766132894893,0.001099,87980.0,87975.0,0.00572]
[1766132895294,0.11703,87984.0,87975.0,0.00572]
[1766132895772,0.1283957,87984.0,87975.0,0.00572]
[1766132896088,0.11703,87982.0,87975.0,0.00572]
[1766132897438,0.12275,87982.0,87970.0,0.99925232]
[1766132897839,0.11703,87980.0,87968.0,0.00572]
[1766132898076,0.13836,87980.0,87970.0,0.99925232]
[1766132898570,0.11703,87980.0,87970.0,0.99925232]
[1766132899141,0.11703,87980.0,87968.0,0.13448777]
[1766132899342,0.11703,87980.0,87970.0,0.99925232]
[1766132899557,0.11703,87980.0,87968.0,0.12312]
[1766132899769,0.11703,87980.0,87970.0,0.99925232]
[1766132901179,0.11703,87980.0,87968.0,0.00572]
[1766132901385,0.11703,87980.0,87970.0,0.99925232]
[1766132901584,0.13836,87980.0,87968.0,0.00572]
[1766132901799,0.03269621,87980.0,87970.0,0.99925232]
[1766132901999,0.11703,87979.0,87970.0,0.99925232]
[1766132902207,0.12839634,87979.0,87968.0,0.00572]
[1766132902408,0.11703,87978.0,87969.0,0.99925232]
[1766132903455,0.11703,87978.0,87968.0,1.00497232]
[1766132904054,0.01136673,87976.0,87961.0,0.00024835]
[1766132904257,0.11703,87973.0,87961.0,0.00024835]
[1766132904664,0.11703,87973.0,87962.0,0.1174]
[1766132905897,0.11703,87973.0,87961.0,0.00024835]
[1766132906124,0.11703,87973.0,87963.0,0.1174]
[1766132906330,0.11703,87973.0,87964.0,0.1174]
[1766132907299,0.11703,87973.0,87964.0,0.12876828]
[1766132907678,0.11703,87973.0,87964.0,0.1174]
[1766132908557,0.01136725,87972.0,87961.0,0.00024835]
[1766132908699,0.11703,87962.0,87950.0,0.99925232]
[1766132909042,0.12275,87962.0,87950.0,0.99925232]
[1766132909733,0.02133,87959.0,87950.0,0.99925232]
[1766132909878,0.00572,87962.0,87950.0,0.87425232]
[1766132909879,0.02133,87957.0,87950.0,0.87425232]
[1766132910074,0.11703,87956.0,87949.0,0.00572]
[1766132911251,0.11709204,87956.0,87949.0,0.00572]
[1766132911601,6.204e-05,87956.0,87952.0,0.1174]
[1766132911826,2.04e-06,87956.0,87952.0,0.1174]
[1766132912403,2.04e-06,87956.0,87951.0,0.12437]
[1766132912608,2.04e-06,87956.0,87947.0,0.12877048]
[1766132912942,0.11703204,87956.0,87946.0,0.99925232]
[1766132913482,2.04e-06,87956.0,87944.0,0.1174]
[1766132914032,0.0113697,87953.0,87937.0,0.04552]
[1766132914265,0.0113697,87953.0,87934.0,0.0002]
[1766132914266,0.11703,87943.0,87934.0,0.0002]
[1766132914433,0.11703,87943.0,87935.0,0.1174]
[1766132914973,0.11703,87943.0,87934.0,0.0002]
[1766132915205,0.00572,87946.0,87934.0,0.0002]
[1766132915206,0.11703,87939.0,87934.0,0.0002]
[1766132915711,0.11703,87939.0,87938.0,0.00071405]
[1766132915922,0.000714,87938.0,87933.0,0.0002]
[1766132916405,0.12840151,87939.0,87933.0,0.0002]
[1766132916759,0.117905,87933.0,87921.0,0.05]
[1766132917204,0.11772,87933.0,87922.0,0.12306]
[1766132917767,0.11772,87933.0,87921.0,0.05]
[1766132917768,0.01137242,87932.0,87921.0,0.05]
[1766132917968,0.11772,87931.0,87921.0,0.05]
[1766132918171,0.13905,87929.0,87921.0,0.05]
[1766132918610,0.11772,87929.0,87921.0,0.05]
[1766132919011,0.11752,87929.0,87921.0,0.05]
[1766132919328,0.11752,87929.0,87921.0,0.050364]
[1766132920925,0.01137332,87925.0,87921.0,0.050364]
[1766132921130,0.01137345,87924.0,87921.0,0.049265]
[1766132921336,0.01137423,87918.0,87912.0,0.0002]
[1766132921667,0.11772,87921.0,87912.0,0.00056493]
[1766132922016,0.12909384,87921.0,87912.0,0.00056493]
[1766132922372,0.0113741,87919.0,87912.0,0.00056493]
[1766132922777,0.11772,87918.0,87912.0,0.00056493]
[1766132922979,0.12909488,87913.0,87906.0,4.93e-06]
[1766132923133,0.12344,87912.0,87906.0,4.93e-06]
[1766132923340,0.11772,87910.0,87905.0,4.93e-06]
[1766132923540,0.12909527,87910.0,87905.0,4.93e-06]
[1766132923742,0.11772,87910.0,87905.0,4.93e-06]
[1766132924167,0.12909527,87910.0,87905.0,4.93e-06]
[1766132924367,0.11772,87910.0,87905.0,4.93e-06]
[1766132925777,0.11772,87910.0,87900.0,0.1002]
[1766132925778,0.01137552,87908.0,87900.0,0.1002]
[1766132925984,0.11772,87909.0,87900.0,0.1002]
[1766132926533,0.02077,87910.0,87893.0,0.113]
[1766132926534,0.22752698,87902.0,87893.0,0.113]
[1766132926704,0.01137747,87893.0,87889.0,0.05]
[1766132927064,0.01137759,87892.0,87882.0,0.1478]
[1766132927267,0.01137759,87892.0,87860.0,1.04477232]
[1766132927268,0.22758047,87881.0,87860.0,1.04477232]
[1766132927463,0.03353,87878.0,87860.0,1.11225232]
[1766132927696,0.0329386,87877.0,87861.0,0.12306]
[1766132927892,0.0456986,87877.0,87861.0,0.12306]
[1766132928091,0.01848,87877.0,87861.0,0.12306]
[1766132928305,0.01848,87877.0,87861.0,0.13444161]
[1766132928519,0.01848,87877.0,87861.0,0.12316929]
[1766132929342,0.00572,87877.0,87861.0,0.00010929]
[1766132929584,0.01276,87886.0,87867.0,1.23531232]
[1766132929705,0.0194,87893.0,87886.0,0.001099]
[1766132929913,0.04353643,87901.0,87883.0,0.12306]
[1766132930110,0.01629619,87900.0,87883.0,0.12306]
[1766132930314,0.01276,87899.0,87883.0,0.12306]
[1766132930528,0.02413695,87897.0,87882.0,0.113]
[1766132930816,0.00572,87896.0,87882.0,0.113]
[1766132931041,0.00572,87895.0,87887.0,0.99925232]
[1766132931244,0.05693617,87903.0,87882.0,0.113]
[1766132931245,0.00572,87894.0,87885.0,0.99925232]
[1766132931446,0.00572,87893.0,87882.0,0.113]
[1766132932390,0.00572,87893.0,87882.0,0.12437889]
[1766132932586,0.00572,87893.0,87881.0,0.01137902]
[1766132932939,0.00572,87893.0,87882.0,0.01137889]
[1766132933118,0.00572,87893.0,87881.0,0.12437902]
[1766132933319,0.00572,87893.0,87880.0,0.91034286]
[1766132933520,0.00572,87893.0,87879.0,0.13443928]
[1766132934145,0.00572,87893.0,87879.0,0.12306]
[1766132934547,0.00572,87893.0,87879.0,0.13443928]
[1766132934726,0.00572,87893.0,87879.0,0.12306]
[1766132934930,0.01848,87893.0,87875.0,0.1243798]
[1766132935167,0.01848,87893.0,87876.0,0.01137967]
[1766132935374,0.01848,87893.0,87875.0,0.1243798]
[1766132935551,0.01848,87893.0,87876.0,0.01137967]
[1766132935552,0.01276,87892.0,87876.0,0.01137967]
[1766132935734,0.01276,87891.0,87875.0,0.113]
[1766132935936,0.01276,87891.0,87875.0,0.1243798]
[1766132936365,0.01276,87891.0,87875.0,0.113]
[1766132936544,0.01276,87890.0,87875.0,0.113]
[1766132937349,0.01276,87890.0,87875.0,0.1243798]
[1766132937681,0.0194,87890.0,87875.0,0.113]
[1766132937883,0.0194,87888.0,87873.0,0.01138005]
[1766132938084,0.00572,87887.0,87871.0,0.15352]
[1766132938244,0.01848,87887.0,87871.0,0.15352]
[1766132938452,0.01138005,87873.0,87848.0,0.17306]
[1766132938651,0.01137993,87874.0,87853.0,0.01138265]
[1766132938873,0.0272186,87872.0,87859.0,0.113]
[1766132939071,0.03859878,87872.0,87860.0,0.113]
[1766132939274,0.0272186,87872.0,87862.0,0.12306]
[1766132939438,0.22757794,87883.0,87853.0,0.01710265]
[1766132939439,0.01137837,87886.0,87865.0,0.12438109]
[1766132939650,0.00572,87885.0,87872.0,0.12306]
[1766132939854,0.00572,87884.0,87875.0,0.1243798]
[1766132940121,0.00572,87883.0,87878.0,0.12306]
[1766132940281,0.00572,87883.0,87879.0,0.12306]
[1766132940463,0.00572,87884.0,87879.0,0.12306]
[1766132940668,0.00572,87885.0,87879.0,0.12306]
[1766132941034,0.00572,87885.0,87879.0,0.12311999]
[1766132941808,0.00572,87886.0,87881.0,0.12306]
[1766132942111,0.00572,87886.0,87880.0,0.113]
[1766132942308,0.00572,87886.0,87867.0,0.00572]
[1766132942309,0.001099,87880.0,87867.0,0.00572]
[1766132942624,0.04431788,87879.0,87867.0,0.00010935]
[1766132942839,0.01137967,87876.0,87867.0,0.00010935]
[1766132943047,0.04431788,87879.0,87867.0,0.00010935]
[1766132943197,0.0329386,87879.0,87867.0,0.00010935]
[1766132944458,0.01137954,87877.0,87867.0,0.00010935]
[1766132944653,0.0272186,87894.0,87873.0,0.12197]
[1766132944654,0.0727786,87889.0,87873.0,0.12197]
[1766132945000,0.0727786,87889.0,87874.0,0.09123]
[1766132945001,0.0113785,87885.0,87874.0,0.09123]
[1766132945132,0.02195402,87884.0,87874.0,0.09123]
[1766132945335,0.01057539,87883.0,87874.0,0.09123]
[1766132945518,0.01629539,87882.0,87874.0,0.09123]
[1766132945720,0.01057539,87881.0,87874.0,0.09123]
[1766132945934,0.00572,87882.0,87874.0,0.09123]
[1766132946157,0.01057907,87881.0,87874.0,0.09123]
[1766132946363,0.001099,87874.0,87867.0,0.00010935]
[1766132947000,0.01137993,87874.0,87867.0,0.00010935]
[1766132947161,0.01138031,87871.0,87867.0,0.00010935]
[1766132947375,0.0385984,87875.0,87867.0,0.00010935]
[1766132947634,0.01058492,87874.0,87867.0,0.00010935]
[1766132947793,0.0385984,87875.0,87867.0,0.12351935]
[1766132947794,0.0272186,87875.0,87867.0,0.12351935]
[1766132947994,0.01058463,87874.0,87867.0,0.12351935]
[1766132948283,0.0272186,87875.0,87867.0,0.12351935]
[1766132948458,0.01058881,87874.0,87867.0,0.12351935]
[1766132948651,0.01058881,87873.0,87867.0,0.12351935]
[1766132948848,0.0272186,87875.0,87867.0,0.12351935]
[1766132949055,0.01058894,87874.0,87867.0,0.12351935]
[1766132949199,0.00098965,87867.0,87864.0,0.11578]
[1766132949404,0.00098965,87867.0,87864.0,0.11587959]
[1766132949607,0.0385984,87875.0,87864.0,0.23928959]
[1766132949816,0.01138005,87873.0,87864.0,0.23928959]
[1766132950071,0.01059406,87872.0,87864.0,0.23928959]
[1766132950421,0.01059406,87871.0,87864.0,0.23928959]
[1766132950589,0.01059406,87870.0,87864.0,0.23928959]
[1766132950799,0.01059406,87869.0,87864.0,9.959e-05]
[1766132951039,0.01059406,87869.0,87860.0,0.00572]
[1766132951040,9.9e-05,87864.0,87845.0,0.01138368]
[1766132951231,0.01138044,87870.0,87857.0,0.12341]
[1766132951387,0.23898435,87872.0,87850.0,0.01138303]
[1766132951388,0.00572,87869.0,87862.0,0.11578]
[1766132951566,0.00572,87869.0,87865.0,0.12341]
[1766132952009,0.00572,87869.0,87864.0,0.11578]
[1766132952430,0.00572,87869.0,87860.0,0.12341]
[1766132952627,0.0113807,87868.0,87856.0,0.11578]
[1766132952832,0.00572,87869.0,87857.0,0.12341]
[1766132953007,0.01710057,87869.0,87855.0,0.00572]
[1766132953211,0.0113807,87868.0,87855.0,0.00572]
[1766132953408,0.01138083,87867.0,87855.0,0.00572]
[1766132953625,0.0113807,87868.0,87855.0,0.00572]
[1766132954326,0.01710057,87869.0,87855.0,0.00572]
[1766132954717,0.0113807,87868.0,87860.0,0.00024876]